bitfinex-derivatives/quotes_BTCF0:USTF0_20210109
["timestamp","ask_amount","ask_price","bid_price","bid_amount"]
[1610181622229,0.2878,39921.0,39920.0,0.13632608]
[1610181622431,0.2878,39921.0,39920.0,0.13656547]
[1610181623030,0.2878,39921.0,39920.0,0.00023939]
[1610181623631,0.2878,39921.0,39904.0,0.01721763]
[1610181624231,0.2878,39921.0,39917.0,0.13632608]
[1610181624631,0.2878,39921.0,39918.0,0.00023939]
[1610181625433,0.2878,39921.0,39904.0,0.01721716]
[1610181626134,0.2878,39921.0,39917.0,0.13632608]
[1610181626535,0.2878,39921.0,39918.0,0.00023939]
[1610181627238,0.2878,39921.0,39904.0,0.01721743]
[1610181628137,0.13632608,39916.0,39914.0,0.13632608]
[1610181628536,0.13632608,39916.0,39915.0,0.01721684]
[1610181630240,0.13632608,39916.0,39909.0,0.13632608]
[1610181630440,0.13632608,39916.0,39915.0,0.01721841]
[1610181630638,0.13632608,39916.0,39910.0,0.01721789]
[1610181631038,0.13632608,39916.0,39915.0,0.01721696]
[1610181631239,0.13632608,39916.0,39909.0,0.13632608]
[1610181631240,0.13632608,39916.0,39911.0,0.01721691]
[1610181631439,0.13632608,39916.0,39915.0,0.00023939]
[1610181631641,0.13632608,39916.0,39912.0,0.00023939]
[1610181631840,0.13632608,39916.0,39912.0,0.01721813]
[1610181632040,0.13632608,39916.0,39915.0,0.00023939]
[1610181632240,0.13632608,39916.0,39913.0,0.00023939]
[1610181632744,0.13632608,39916.0,39906.0,0.01721892]
[1610181633743,0.13632608,39916.0,39906.0,0.00023939]
[1610181633942,0.13632608,39916.0,39901.0,0.01722035]
[1610181634142,0.83649782,39921.0,39915.0,0.13632608]
[1610181634143,0.48043763,39918.0,39915.0,0.13632608]
[1610181634542,0.76822606,39921.0,39916.0,0.0002394]
[1610181635244,0.2878,39921.0,39916.0,0.01721721]
[1610181636242,0.2878,39921.0,39920.0,0.13632608]
[1610181636644,0.2878,39921.0,39920.0,0.13656545]
[1610181637846,0.2878,39921.0,39920.0,0.15354112]
[1610181638244,0.2878,39921.0,39920.0,0.01721504]
[1610181638645,0.2878,39921.0,39916.0,0.01721476]
[1610181638847,0.2878,39921.0,39920.0,0.01721476]
[1610181639047,0.2878,39921.0,39917.0,0.0172148]
[1610181639448,0.2878,39921.0,39916.0,0.01721495]
[1610181639648,0.2878,39921.0,39918.0,0.01721484]
[1610181639848,0.2878,39921.0,39917.0,0.01721528]
[1610181640248,0.13632608,39918.0,39916.0,0.017215]
[1610181640452,0.13632608,39918.0,39915.0,0.13632608]
[1610181640649,0.13632608,39918.0,39917.0,0.0172151]
[1610181640850,0.13632608,39918.0,39916.0,0.01721493]
[1610181641250,0.13632608,39918.0,39917.0,0.01721483]
[1610181641650,0.13632608,39918.0,39916.0,0.01721487]
[1610181642051,0.13632608,39918.0,39917.0,0.01721545]
[1610181642251,0.13632608,39918.0,39916.0,0.01721547]
[1610181642450,0.13632608,39918.0,39917.0,0.01721547]
[1610181642953,0.13632608,39918.0,39916.0,0.01721537]
[1610181643351,0.13632608,39918.0,39917.0,0.01721537]
[1610181643751,0.13632608,39918.0,39916.0,0.01721525]
[1610181644151,0.13632608,39918.0,39917.0,0.01721525]
[1610181644353,0.13632608,39918.0,39916.0,0.01721518]
[1610181644552,0.13632608,39918.0,39917.0,0.01721518]
[1610181644951,0.13632608,39918.0,39916.0,0.01721521]
[1610181645152,0.13632608,39918.0,39917.0,0.01721543]
[1610181645353,0.13632608,39918.0,39915.0,0.13632608]
[1610181645554,0.2878,39921.0,39915.0,0.13632608]
[1610181645752,0.2878,39921.0,39917.0,0.00023937]
[1610181645952,0.2878,39921.0,39916.0,0.01697606]
[1610181645953,0.2878,39921.0,39916.0,0.01721543]
[1610181646154,0.2878,39921.0,39918.0,0.00023937]
[1610181646354,0.2878,39921.0,39916.0,0.01721543]
[1610181646755,0.2878,39921.0,39919.0,0.00023937]
[1610181646955,0.2878,39921.0,39917.0,0.00023937]
[1610181647155,0.2878,39921.0,39920.0,0.00023937]
[1610181647555,0.2878,39921.0,39918.0,0.00023937]
[1610181647757,0.2878,39921.0,39916.0,0.01721543]
[1610181647957,0.2878,39921.0,39919.0,0.00023937]
[1610181648357,0.2878,39921.0,39920.0,0.13632608]
[1610181648558,0.02314764,39927.0,39920.0,0.23894543]
[1610181648758,0.02314764,39927.0,39920.0,0.25591821]
[1610181649158,0.0231428,39935.0,39921.0,0.01721161]
[1610181649358,0.0231428,39935.0,39932.0,3.3279]
[1610181649558,0.54827124,39938.0,39932.0,3.40957]
[1610181649559,0.02313478,39938.0,39932.0,3.40957]
[1610181649758,0.76116463,39948.0,39932.0,3.40957]
[1610181649759,0.02313129,39948.0,39932.0,3.40957]
[1610181649958,0.02313129,39948.0,39933.0,0.01720697]
[1610181650159,0.66974221,39954.0,39933.0,0.01720697]
[1610181650160,0.02312835,39954.0,39947.0,3.2766]
[1610181650361,0.02312835,39954.0,39953.0,0.13632608]
[1610181650558,0.66965688,39960.0,39953.0,0.13632608]
[1610181650559,0.00775048,39959.0,39953.0,0.13632608]
[1610181650960,0.00775001,39961.0,39953.0,0.13656529]
[1610181651158,0.00775001,39961.0,39954.0,0.00023921]
[1610181651360,0.00774031,39965.0,39954.0,0.00023921]
[1610181651760,0.00773951,39967.0,39954.0,0.00023921]
[1610181652161,0.00773926,39968.0,39954.0,0.00023921]
[1610181652360,0.00773926,39968.0,39967.0,0.13632608]
[1610181652561,0.00772964,39969.0,39967.0,0.13632608]
[1610181652760,0.45483648,39971.0,39967.0,0.13632608]
[1610181652761,0.02303576,39971.0,39967.0,0.13656525]
[1610181652961,0.02303576,39971.0,39968.0,0.00023917]
[1610181653364,0.00772904,39972.0,39968.0,0.00023917]
[1610181653762,0.00772012,39974.0,39968.0,0.00023917]
[1610181654063,0.02300899,39975.0,39968.0,0.00023917]
[1610181654463,0.00772012,39975.0,39968.0,0.00023917]
[1610181654663,0.13632608,39972.0,39964.0,0.13632608]
[1610181654865,0.00771251,39976.0,39965.0,0.00023915]
[1610181655867,0.04026506,39977.0,39965.0,0.00023915]
[1610181656063,0.04026506,39977.0,39964.0,0.00023915]
[1610181656265,0.03255957,39977.0,39964.0,0.00023915]
[1610181656964,0.03255957,39977.0,39956.0,0.00023915]
[1610181658669,0.03255957,39977.0,39963.0,0.13632608]
[1610181658869,0.03255957,39977.0,39956.0,0.00023915]
[1610181659069,0.03255957,39977.0,39955.0,0.09225]
[1610181659268,4.0827,39971.0,39956.0,0.00023914]
[1610181659468,4.19094,39971.0,39956.0,0.00023914]
[1610181659869,4.19094,39971.0,39948.0,0.00023916]
[1610181660669,4.19094,39971.0,39967.0,0.13632608]
[1610181660868,4.19094,39971.0,39947.0,0.1006]
[1610181661071,4.19094,39971.0,39906.0,1.5]
[1610181661072,2.8755,39956.0,39919.0,3.9438]
[1610181661670,2.8755,39956.0,39921.0,0.0002392]
[1610181661870,2.8755,39956.0,39921.0,0.08782]
[1610181662270,2.8755,39956.0,39922.0,0.00023923]
[1610181662470,0.277,39955.0,39922.0,0.00023923]
[1610181664572,0.13632608,39949.0,39936.0,0.13632608]
[1610181665072,0.13632608,39949.0,39937.0,0.00023998]
[1610181665872,0.277,39955.0,39937.0,0.00023998]
[1610181666677,0.277,39955.0,39951.0,0.13632608]
[1610181669377,0.277,39955.0,39942.0,0.11313]
[1610181669577,0.277,39955.0,39943.0,0.00023993]
[1610181670579,0.13632608,39948.0,39946.0,0.13632608]
[1610181671180,0.13632608,39948.0,39947.0,0.00023993]
[1610181675886,0.13632608,39948.0,39943.0,0.00023995]
[1610181676082,0.13632608,39948.0,39947.0,0.00023995]
[1610181676485,0.13632608,39948.0,39944.0,0.00023995]
[1610181676686,0.13632608,39948.0,39943.0,0.00023995]
[1610181676886,0.13632608,39948.0,39945.0,0.00023995]
[1610181677286,0.13632608,39948.0,39944.0,0.00023997]
[1610181677485,0.13632608,39948.0,39946.0,0.00023997]
[1610181677685,0.13632608,39948.0,39945.0,0.00023997]
[1610181677987,0.13632608,39948.0,39947.0,0.00023997]
[1610181678186,0.13632608,39948.0,39946.0,0.00023997]
[1610181678586,0.13632608,39948.0,39947.0,0.00023997]
[1610181678987,0.13632608,39948.0,39943.0,0.00023997]
[1610181679387,0.13632608,39948.0,39947.0,0.00023997]
[1610181679588,0.13632608,39948.0,39943.0,0.00023997]
[1610181679792,0.13632608,39948.0,39947.0,0.00023997]
[1610181680192,0.13632608,39948.0,39943.0,0.00023997]
[1610181680392,0.13632608,39948.0,39947.0,0.00023997]
[1610181680593,0.13632608,39948.0,39944.0,0.00023997]
[1610181680993,0.13632608,39948.0,39947.0,0.00023997]
[1610181681193,0.13632608,39948.0,39945.0,0.00023997]
[1610181681393,0.13632608,39948.0,39947.0,0.00023997]
[1610181681795,0.13632608,39948.0,39943.0,0.00023997]
[1610181681995,0.13632608,39948.0,39947.0,0.00023997]
[1610181682194,0.13632608,39948.0,39944.0,0.00023997]
[1610181682395,0.13632608,39948.0,39947.0,0.00023997]
[1610181682795,0.277,39955.0,39945.0,0.00023995]
[1610181682995,0.277,39955.0,39947.0,0.00023995]
[1610181683195,0.277,39955.0,39946.0,0.00023995]
[1610181683595,0.277,39955.0,39948.0,0.00023993]
[1610181683794,3.8434,39955.0,39947.0,0.00023993]
[1610181683994,3.8434,39955.0,39949.0,0.00023995]
[1610181684396,3.8434,39955.0,39943.0,0.00023995]
[1610181684597,3.8434,39955.0,39950.0,0.00023995]
[1610181684795,3.8434,39955.0,39944.0,0.00023995]
[1610181685199,3.8434,39955.0,39943.0,0.00023995]
[1610181685396,3.8434,39955.0,39945.0,0.00023993]
[1610181685596,3.8434,39955.0,39944.0,0.00023993]
[1610181685797,3.8434,39955.0,39946.0,0.00023993]
[1610181686196,3.8434,39955.0,39942.0,0.11313]
[1610181686197,3.8434,39955.0,39945.0,0.00023993]
[1610181686398,3.8434,39955.0,39943.0,0.00023993]
[1610181686598,3.8434,39955.0,39946.0,0.00023995]
[1610181686798,0.13632608,39947.0,39946.0,0.00023995]
[1610181687001,0.13632608,39947.0,39945.0,0.13632608]
[1610181687398,0.13632608,39947.0,39946.0,0.01749612]
[1610181687799,3.8434,39955.0,39946.0,0.01749612]
[1610181688700,0.13632608,39947.0,39946.0,0.01749612]
[1610181690001,0.13632608,39947.0,39943.0,0.01749585]
[1610181690402,0.13632608,39947.0,39946.0,0.017496]
[1610181690602,0.13632608,39947.0,39944.0,0.01749577]
[1610181690803,0.13632608,39947.0,39946.0,0.01749572]
[1610181691201,0.13632608,39947.0,39945.0,0.01749567]
[1610181691402,0.13632608,39947.0,39942.0,0.11313]
[1610181691403,0.13632608,39947.0,39946.0,0.01749557]
[1610181692005,0.13632608,39947.0,39943.0,0.01749566]
[1610181692203,0.13632608,39947.0,39946.0,0.01749579]
[1610181692404,0.13632608,39947.0,39944.0,0.01749648]
[1610181692706,0.13632608,39947.0,39943.0,0.01749648]
[1610181692905,0.13632608,39947.0,39946.0,0.13632608]
[1610181693506,0.13632608,39947.0,39946.0,0.1538223]
[1610181696710,0.13632608,39947.0,39946.0,0.01749622]
[1610181697111,0.13632608,39947.0,39946.0,0.00023994]
[1610181697311,0.13632608,39947.0,39943.0,0.01749645]
[1610181697513,0.13632608,39947.0,39946.0,0.01749596]
[1610181697712,0.13632608,39947.0,39944.0,0.01749596]
[1610181697911,0.13632608,39947.0,39946.0,0.01749587]
[1610181698312,0.13632608,39947.0,39945.0,0.01749595]
[1610181698511,0.13632608,39947.0,39946.0,0.01749608]
[1610181699012,0.13632608,39947.0,39943.0,0.1538222]
[1610181699215,0.13632608,39947.0,39946.0,0.01749628]
[1610181699613,0.13632608,39947.0,39944.0,0.01749634]
[1610181703325,0.13632608,39947.0,39944.0,0.09199634]
[1610181703726,0.13632608,39947.0,39945.0,0.0174964]
[1610181704527,0.13632608,39947.0,39944.0,0.01749662]
[1610181706129,0.13632608,39947.0,39945.0,0.0751]
[1610181706329,0.5121,39946.0,39945.0,0.0751]
[1610181706530,0.5121,39946.0,39944.0,0.01749662]
[1610181706730,0.5121,39946.0,39945.0,0.01749726]
[1610181707129,0.5121,39946.0,39943.0,0.01749854]
[1610181707331,0.527435,39946.0,39943.0,0.01749854]
[1610181707530,0.527435,39946.0,39945.0,0.01749893]
[1610181707732,0.527435,39946.0,39944.0,0.0749]
[1610181707733,1.88120785,39946.0,39944.0,0.00024002]
[1610181707931,1.88120785,39946.0,39945.0,0.00024002]
[1610181708130,0.5121,39946.0,39945.0,0.00024002]
[1610181708530,1.88166267,39946.0,39943.0,0.01750247]
[1610181708730,1.88166267,39946.0,39945.0,0.00024002]
[1610181708929,0.5121,39946.0,39945.0,0.00024002]
[1610181709130,0.5121,39946.0,39944.0,0.00024002]
[1610181709331,1.88167899,39946.0,39945.0,0.00024002]
[1610181709530,2.01800507,39946.0,39945.0,0.00024002]
[1610181709731,2.01800507,39946.0,39943.0,0.00024002]
[1610181710130,2.01800507,39946.0,39945.0,0.00024002]
[1610181710331,2.01800507,39946.0,39944.0,0.00024002]
[1610181710531,2.01800507,39946.0,39945.0,0.00024002]
[1610181710931,0.64842608,39946.0,39945.0,0.00024002]
[1610181711132,0.13632608,39946.0,39943.0,0.00024004]
[1610181711332,1.50584128,39946.0,39945.0,0.00024004]
[1610181711733,0.91347151,39945.0,39944.0,0.00024001]
[1610181711932,0.91347151,39945.0,39942.0,0.11313]
[1610181712133,0.91347151,39945.0,39933.0,0.25307608]
[1610181712134,0.00774429,39945.0,39944.0,0.00023998]
[1610181712534,3.3851,39945.0,39934.0,0.01749898]
[1610181712732,3.3851,39945.0,39944.0,0.00023998]
[1610181712935,3.3851,39945.0,39935.0,0.00023998]
[1610181713334,3.3851,39945.0,39944.0,0.00023998]
[1610181713533,3.3851,39945.0,39936.0,0.00023998]
[1610181713733,3.3851,39945.0,39934.0,0.01749898]
[1610181715438,3.39284807,39945.0,39934.0,0.01749898]
[1610181715635,0.13632608,39935.0,39934.0,0.01749898]
[1610181715836,0.62202608,39935.0,39934.0,0.01749898]
[1610181716938,0.62202608,39935.0,39934.0,0.017259]
[1610181717139,0.62202608,39935.0,39934.0,0.01749899]
[1610181717541,0.62202608,39935.0,39934.0,0.15382507]
[1610181719741,0.62202608,39935.0,39934.0,0.01749899]
[1610181721143,0.4857,39935.0,39934.0,0.01749899]
[1610181723547,0.62202608,39935.0,39934.0,0.01749899]
[1610181725549,0.62202608,39935.0,39934.0,4.01749899]
[1610181731853,0.62202608,39935.0,39934.0,4.00023999]
[1610181732054,1.07890777,39935.0,39934.0,4.00023999]
[1610181732854,1.99379346,39935.0,39934.0,4.00023999]
[1610181733956,1.07890777,39935.0,39934.0,4.00023999]
[1610181734956,1.62696566,39935.0,39934.0,4.00023999]
[1610181735358,1.07890777,39935.0,39934.0,4.00023999]
[1610181737259,1.07890777,39935.0,39934.0,4.07453999]
[1610181737459,1.99346026,39935.0,39934.0,4.07453999]
[1610181737858,1.07890777,39935.0,39934.0,4.07453999]
[1610181738260,1.07890777,39935.0,39934.0,4.00023999]
[1610181740264,1.07890777,39935.0,39934.0,4.07463999]
[1610181742867,0.59320777,39935.0,39934.0,4.07463999]
[1610181743066,0.59320777,39935.0,39934.0,4.00023999]
[1610181743667,0.59320777,39935.0,39934.0,0.00023999]
[1610181744168,5.24247291,39935.0,39929.0,0.00024152]
[1610181744367,1.50737291,39935.0,39929.0,0.00024152]
[1610181744567,1.14065825,39935.0,39934.0,0.00024152]
[1610181744767,1.14065825,39935.0,39922.0,0.01808321]
[1610181744967,3.3347,39929.0,39922.0,0.01784169]
[1610181745367,3.3347,39929.0,39923.0,0.00024153]
[1610181745567,3.3347,39929.0,39922.0,0.01784169]
[1610181745568,3.3347,39929.0,39922.0,0.01808322]
[1610181745767,0.13632608,39923.0,39911.0,0.01784258]
[1610181746168,0.13632608,39923.0,39922.0,0.0180842]
[1610181746371,0.13632608,39923.0,39912.0,0.01808401]
[1610181746569,0.13632608,39923.0,39922.0,0.01808403]
[1610181746770,0.13632608,39923.0,39922.0,0.0178425]
[1610181746969,0.13632608,39923.0,39913.0,0.01808413]
[1610181747169,0.13632608,39923.0,39922.0,0.01808413]
[1610181747369,0.13632608,39923.0,39914.0,0.01808497]
[1610181747570,0.13632608,39923.0,39922.0,0.00024155]
[1610181747871,0.13632608,39923.0,39915.0,0.01808542]
[1610181748271,0.13632608,39923.0,39922.0,0.00024155]
[1610181748471,0.13632608,39923.0,39916.0,0.01808537]
[1610181748670,0.13632608,39923.0,39922.0,0.00024155]
[1610181748973,0.13632608,39923.0,39917.0,0.01808545]
[1610181749170,0.13632608,39923.0,39922.0,0.00024155]
[1610181749571,0.13632608,39923.0,39912.0,0.01808545]
[1610181749772,0.13632608,39913.0,39911.0,0.09964]
[1610181750372,0.13632608,39913.0,39912.0,0.01808544]
[1610181750572,0.00775117,39928.0,39912.0,0.01808544]
[1610181750774,0.00775117,39928.0,39912.0,0.01784389]
[1610181750973,0.02309216,39930.0,39912.0,0.01784389]
[1610181751173,0.02309216,39930.0,39913.0,0.00024153]
[1610181751373,0.00774738,39931.0,39912.0,0.01808542]
[1610181751772,3.7782,39926.0,39925.0,0.13632608]
[1610181751974,3.7782,39926.0,39912.0,0.01808542]
[1610181752174,3.7782,39926.0,39911.0,0.09964]
[1610181752374,3.7782,39926.0,39908.0,0.0742]
[1610181752575,3.7782,39926.0,39912.0,0.00024149]
[1610181752774,3.7782,39926.0,39912.0,0.11398149]
[1610181752974,3.7782,39926.0,39913.0,0.0745]
[1610181753174,3.7782,39926.0,39913.0,0.01808038]
[1610181753777,0.13632608,39914.0,39913.0,0.15440646]
[1610181754378,0.55962608,39914.0,39913.0,0.15440646]
[1610181754777,0.55962608,39914.0,39912.0,0.11374]
[1610181754978,0.55962608,39914.0,39913.0,0.01808349]
[1610181755177,0.55962608,39914.0,39913.0,0.03592605]
[1610181755378,0.55962608,39914.0,39913.0,0.03616758]
[1610181757081,0.55962608,39914.0,39913.0,0.01808349]
[1610181757382,0.55962608,39914.0,39913.0,0.03616878]
[1610181760886,0.55962608,39914.0,39913.0,0.01832503]
[1610181763994,0.57496225,39914.0,39913.0,0.01832503]
[1610181764395,0.15166225,39914.0,39913.0,0.01832503]
[1610181764596,0.14406824,39914.0,39913.0,0.01832503]
[1610181765395,0.13632608,39914.0,39913.0,0.01832503]
[1610181766497,3.25412608,39914.0,39913.0,0.01832503]
[1610181767498,3.32972608,39914.0,39913.0,0.01832503]
[1610181767698,3.25412608,39914.0,39913.0,0.01832503]
[1610181767898,3.25412608,39914.0,39913.0,2.503e-05]
[1610181768098,3.25412608,39914.0,39905.0,0.00024166]
[1610181768298,3.26944833,39914.0,39905.0,0.00024166]
[1610181768698,0.00773706,39912.0,39905.0,0.00024166]
[1610181769099,0.02305973,39912.0,39905.0,0.00024166]
[1610181769300,0.00773719,39911.0,39905.0,0.00024166]
[1610181769499,0.02305446,39911.0,39905.0,0.00024166]
[1610181769701,0.13632608,39906.0,39887.0,0.01752241]
[1610181769900,0.13632608,39906.0,39887.0,0.00024005]
[1610181770100,3.0994,39896.0,39875.0,0.01752323]
[1610181770300,3.0994,39896.0,39888.0,0.00024005]
[1610181770500,3.0994,39896.0,39888.0,0.09309]
[1610181770700,3.0994,39896.0,39889.0,0.00024008]
[1610181771700,0.13632608,39890.0,39889.0,0.00024008]
[1610181772900,0.62122608,39890.0,39889.0,0.00024008]
[1610181775103,0.13632608,39890.0,39889.0,0.00024008]
[1610181777708,0.13632608,39890.0,39889.0,0.13656616]
[1610181779108,0.2744,39903.0,39889.0,0.13656616]
[1610181779710,0.2744,39903.0,39902.0,0.13632608]
[1610181780310,0.10123,39907.0,39902.0,0.1365661]
[1610181780709,4.00425,39916.0,39903.0,0.00024002]
[1610181781111,3.9319,39916.0,39903.0,0.00024002]
[1610181781711,0.13632608,39907.0,39903.0,0.00024002]
[1610181783612,2.9823,39904.0,39903.0,0.00024002]
[1610181784412,0.13632608,39907.0,39903.0,0.00024002]
[1610181784612,0.13632608,39907.0,39889.0,0.0002413]
[1610181784813,0.13632608,39907.0,39889.0,0.01792021]
[1610181785014,0.13632608,39907.0,39904.0,0.0002413]
[1610181785213,0.13632608,39907.0,39890.0,0.0002413]
[1610181785413,0.13632608,39907.0,39889.0,0.01767891]
[1610181785414,0.13632608,39907.0,39889.0,0.01792021]
[1610181785814,0.13632608,39899.0,39896.0,0.13632608]
[1610181786015,3.679,39909.0,39896.0,0.13632608]
[1610181786214,3.679,39909.0,39897.0,0.01791723]
[1610181787817,0.13632608,39898.0,39897.0,0.01791723]
[1610181788919,0.13632608,39898.0,39889.0,0.01791911]
[1610181789119,0.13632608,39898.0,39897.0,0.00024128]
[1610181789419,0.13632608,39898.0,39890.0,0.01791952]
[1610181789619,0.13632608,39898.0,39897.0,0.00024128]
[1610181790019,0.13632608,39898.0,39892.0,0.13632608]
[1610181790219,0.13632608,39898.0,39893.0,0.01792014]
[1610181790419,0.13632608,39898.0,39892.0,0.01792009]
[1610181790722,0.13632608,39898.0,39894.0,0.01792009]
[1610181791120,0.13632608,39898.0,39889.0,0.01792017]
[1610181791320,0.13632608,39898.0,39895.0,0.0179202]
[1610181791520,3.1478,39896.0,39890.0,0.0759]
[1610181791920,0.60312608,39891.0,39890.0,0.0759]
[1610181792320,0.13632608,39891.0,39890.0,0.09382024]
[1610181793622,0.13632608,39891.0,39890.0,0.01792024]
[1610181794022,0.13632608,39891.0,39889.0,0.01792066]
[1610181794223,0.13632608,39891.0,39890.0,0.01792064]
[1610181794622,0.13632608,39891.0,39890.0,0.09267934]
[1610181794823,0.21242608,39891.0,39890.0,0.075]
[1610181795024,0.21242608,39891.0,39890.0,0.09292099]
[1610181795624,0.13632608,39891.0,39890.0,0.09292099]
[1610181796627,3.24102608,39891.0,39890.0,0.09292099]
[1610181796827,3.24102608,39891.0,39890.0,0.09292211]
[1610181797028,3.24102608,39891.0,39890.0,0.07524132]
[1610181797227,3.16692608,39891.0,39890.0,0.07524132]
[1610181797426,3.16692608,39891.0,39890.0,0.09292248]
[1610181801935,3.16692608,39891.0,39890.0,0.01792248]
[1610181802336,3.16692608,39891.0,39889.0,0.01792447]
[1610181802536,3.16692608,39891.0,39890.0,0.0179241]
[1610181803136,3.16692608,39891.0,39889.0,0.09262331]
[1610181803338,3.16692608,39891.0,39890.0,0.01792355]
[1610181803739,3.16692608,39891.0,39889.0,0.01792287]
[1610181803938,3.16692608,39891.0,39890.0,0.01792276]
[1610181804337,3.16692608,39891.0,39890.0,0.00024133]
[1610181804538,3.16692608,39891.0,39889.0,0.0179238]
[1610181804740,3.16692608,39891.0,39890.0,0.01792369]
[1610181804937,3.16692608,39891.0,39889.0,0.01792361]
[1610181805140,3.16692608,39891.0,39890.0,0.01768222]
[1610181805338,3.16692608,39891.0,39890.0,0.01792355]
[1610181805739,3.16692608,39891.0,39889.0,0.01792365]
[1610181805940,3.16692608,39891.0,39890.0,0.01792353]
[1610181806341,3.16692608,39891.0,39889.0,0.01792454]
[1610181806540,3.16692608,39891.0,39890.0,0.01792377]
[1610181807140,3.16692608,39891.0,39889.0,0.01792442]
[1610181807341,3.16692608,39891.0,39890.0,0.01792442]
[1610181807842,3.16692608,39891.0,39889.0,0.01792553]
[1610181808043,3.16692608,39891.0,39890.0,0.01792567]
[1610181808647,3.16692608,39891.0,39889.0,0.01792574]
[1610181808845,3.16692608,39891.0,39890.0,0.0179262]
[1610181809145,3.16692608,39891.0,39889.0,0.0179265]
[1610181809546,3.16692608,39891.0,39890.0,0.00024137]
[1610181809946,3.16692608,39891.0,39889.0,0.01792644]
[1610181810146,3.16692608,39891.0,39890.0,0.00024137]
[1610181810746,3.16692608,39891.0,39889.0,0.01792644]
[1610181810949,3.16692608,39891.0,39890.0,0.00024137]
[1610181811547,3.16692608,39891.0,39889.0,0.01792644]
[1610181811748,3.16692608,39891.0,39890.0,0.00024137]
[1610181812349,3.16692608,39891.0,39889.0,0.00024137]
[1610181812549,3.16692608,39891.0,39890.0,0.00024137]
[1610181812949,3.16692608,39891.0,39881.0,0.01792641]
[1610181813148,3.16692608,39891.0,39890.0,0.00024137]
[1610181813349,3.16692608,39891.0,39882.0,0.00024137]
[1610181813751,3.16692608,39891.0,39890.0,0.00024137]
[1610181813949,3.16692608,39891.0,39883.0,0.00024139]
[1610181814149,3.16692608,39891.0,39890.0,0.00024139]
[1610181814150,3.17466731,39891.0,39890.0,0.00024139]
[1610181814350,3.17466731,39891.0,39884.0,0.00024139]
[1610181814551,0.0751,39890.0,39884.0,0.00024139]
[1610181814750,3.17466731,39891.0,39881.0,0.01768504]
[1610181814951,0.13632608,39891.0,39881.0,0.01792643]
[1610181815751,0.00774465,39889.0,39881.0,0.01792643]
[1610181815951,0.13632608,39882.0,39881.0,0.01792643]
[1610181817851,0.13632608,39882.0,39881.0,0.15425251]
[1610181819053,0.02310145,39896.0,39881.0,0.15425251]
[1610181819253,0.00775114,39896.0,39881.0,0.15425251]
[1610181819453,0.00775114,39896.0,39882.0,0.01792146]
[1610181819654,0.00775415,39895.0,39882.0,0.01768014]
[1610181819854,0.13632608,39885.0,39882.0,0.01768014]
[1610181820053,0.13632608,39885.0,39883.0,0.00024132]
[1610181820254,0.13632608,39885.0,39882.0,0.01792146]
[1610181820454,0.13632608,39885.0,39884.0,0.00024132]
[1610181820755,0.13632608,39885.0,39883.0,0.00024132]
[1610181820954,0.13632608,39885.0,39884.0,0.00024132]
[1610181821357,0.13632608,39885.0,39882.0,0.01792146]
[1610181821555,0.13632608,39885.0,39884.0,0.00024132]
[1610181821756,0.13632608,39885.0,39883.0,0.00024132]
[1610181822156,0.13632608,39885.0,39882.0,0.01792146]
[1610181822356,0.13632608,39885.0,39884.0,0.00024132]
[1610181822557,0.13632608,39885.0,39883.0,0.00024132]
[1610181822856,0.13632608,39885.0,39884.0,0.00024132]
[1610181823460,0.13632608,39885.0,39882.0,0.01792146]
[1610181823657,0.13632608,39885.0,39884.0,0.00024132]
[1610181823860,0.13632608,39885.0,39883.0,0.00024132]
[1610181824260,0.13632608,39885.0,39882.0,0.01792146]
[1610181824461,0.13632608,39885.0,39884.0,0.00024132]
[1610181824661,0.13632608,39885.0,39883.0,0.00024132]
[1610181825060,0.13632608,39885.0,39884.0,0.00024132]
[1610181825461,0.13632608,39885.0,39881.0,0.01792246]
[1610181825861,0.13632608,39885.0,39884.0,0.00024132]
[1610181826066,0.13632608,39885.0,39882.0,0.01792221]
[1610181826264,0.13632608,39885.0,39881.0,0.01792218]
[1610181826465,0.13632608,39885.0,39883.0,0.01792221]
[1610181826864,0.13632608,39885.0,39882.0,0.01792243]
[1610181827068,0.13632608,39885.0,39884.0,0.01792239]
[1610181827265,0.13632608,39885.0,39883.0,0.01792239]
[1610181827668,0.13632608,39885.0,39884.0,0.01792232]
[1610181828069,0.13632608,39885.0,39881.0,0.0179223]
[1610181828371,0.13632608,39885.0,39884.0,0.01792244]
[1610181828570,0.13632608,39885.0,39884.0,0.01768112]
[1610181828771,0.13632608,39885.0,39882.0,0.0179224]
[1610181828973,0.13632608,39885.0,39884.0,0.01792247]
[1610181829171,0.13632608,39885.0,39881.0,0.01792237]
[1610181829370,0.13632608,39885.0,39884.0,0.0179223]
[1610181829771,0.13632608,39885.0,39882.0,0.01792239]
[1610181829971,0.13632608,39885.0,39884.0,0.01792236]
[1610181830171,0.13632608,39885.0,39883.0,0.01792236]
[1610181830572,0.13632608,39885.0,39884.0,0.01792243]
[1610181830972,0.13632608,39885.0,39881.0,0.0179225]
[1610181831373,0.13632608,39885.0,39884.0,0.01792273]
[1610181831576,0.13632608,39885.0,39882.0,0.01792324]
[1610181831775,0.13632608,39885.0,39884.0,0.01792319]
[1610181831973,0.13632608,39885.0,39884.0,0.00024134]
[1610181832173,0.13632608,39885.0,39883.0,0.01792321]
[1610181832374,0.13632608,39885.0,39884.0,0.01792315]
[1610181832575,0.13632608,39885.0,39881.0,0.01792315]
[1610181832775,0.13632608,39885.0,39884.0,0.01768173]
[1610181832979,3.39912608,39885.0,39884.0,0.01792307]
[1610181833177,3.39912608,39885.0,39882.0,0.01792309]
[1610181833379,3.39912608,39885.0,39884.0,0.01792298]
[1610181833579,3.39912608,39885.0,39883.0,0.01792308]
[1610181833979,3.39912608,39885.0,39881.0,0.01792313]
[1610181834180,3.39912608,39885.0,39884.0,0.01792313]
[1610181834378,3.39912608,39885.0,39882.0,0.01792313]
[1610181834680,3.39912608,39885.0,39884.0,0.01792345]
[1610181834880,3.39912608,39885.0,39883.0,0.01792345]
[1610181835181,3.39912608,39885.0,39884.0,0.01792343]
[1610181835683,3.39912608,39885.0,39881.0,0.01792346]
[1610181835981,3.39912608,39885.0,39884.0,0.01792346]
[1610181836183,3.39912608,39885.0,39881.0,0.01792352]
[1610181836583,3.39912608,39885.0,39884.0,0.01792348]
[1610181836784,3.39912608,39885.0,39882.0,0.01792353]
[1610181836983,3.39912608,39885.0,39884.0,0.01792361]
[1610181837285,3.39912608,39885.0,39881.0,0.01792359]
[1610181847299,0.13632608,39885.0,39881.0,0.01792359]
[1610181854106,0.13632608,39885.0,39882.0,0.13632608]
[1610181854307,0.13632608,39885.0,39881.0,0.01792359]
[1610181854510,0.13632608,39885.0,39883.0,0.01624266]
[1610181854909,0.13632608,39885.0,39881.0,0.01624256]
[1610181855110,0.13632608,39885.0,39884.0,0.01624256]
[1610181855509,0.13632608,39885.0,39882.0,0.01624267]
[1610181855709,0.13632608,39885.0,39884.0,0.01624263]
[1610181855909,0.13632608,39885.0,39883.0,0.01624267]